[Event "Titled Tuesday Blitz December 06 Early 2022"]
[White "Lawson, Eric"]
[Black "Kamsky, Gata"]
[WhiteFideId "2604116"]
[BlackFideId "2000024"]
[WhiteElo "2577"]
[BlackElo "2666"]
[Result "1/2-1/2"]
[Round "05"]
[TimeControl "180+1"]
[Date "2022.12.07"]
[WhiteClock "0:00:20"]
[BlackClock "0:00:06"]

1. d4 {[%clk 0:02:53]}  Nf6 {[%clk 0:02:53]} 2. Bg5 {[%clk 0:02:53]}  Ne4 {[%clk 0:02:49]} 3. Bf4 {[%clk 0:02:53]}  d5 {[%clk 0:02:48]} 4. e3 {[%clk 0:02:52]}  c6 {[%clk 0:02:44]} 5. Bd3 {[%clk 0:02:50]}  Qb6 {[%clk 0:02:29]} 6. Qc1 {[%clk 0:02:29]}  Qa5+ {[%clk 0:02:16]} 7. c3 {[%clk 0:02:14]}  Bf5 {[%clk 0:02:13]} 8. Qc2 {[%clk 0:02:08]}  Bg6 {[%clk 0:02:11]} 9. h4 {[%clk 0:02:06]}  Nf6 {[%clk 0:02:09]} 10. f3 {[%clk 0:01:59]}  Bxd3 {[%clk 0:02:07]} 11. Qxd3 {[%clk 0:02:00]}  e6 {[%clk 0:02:01]} 12. h5 {[%clk 0:01:58]}  h6 {[%clk 0:01:54]} 13. Nd2 {[%clk 0:01:53]}  c5 {[%clk 0:01:47]} 14. Ne2 {[%clk 0:01:32]}  Nc6 {[%clk 0:01:46]} 15. a3 {[%clk 0:01:28]}  Qb6 {[%clk 0:01:40]} 16. b4 {[%clk 0:01:25]}  c4 {[%clk 0:01:27]} 17. Qb1 {[%clk 0:01:22]}  a6 {[%clk 0:01:16]} 18. a4 {[%clk 0:01:15]}  Be7 {[%clk 0:01:12]} 19. e4 {[%clk 0:01:11]}  O-O-O {[%clk 0:00:57]} 20. e5 {[%clk 0:01:11]}  Nd7 {[%clk 0:00:55]} 21. Bh2 {[%clk 0:01:03]}  Bh4+ {[%clk 0:00:53]} 22. g3 {[%clk 0:01:03]}  Be7 {[%clk 0:00:51]} 23. f4 {[%clk 0:01:03]}  f5 {[%clk 0:00:47]} 24. g4 {[%clk 0:00:55]}  fxg4 {[%clk 0:00:40]} 25. Qg6 {[%clk 0:00:54]}  Bh4+ {[%clk 0:00:18]} 26. Bg3 {[%clk 0:00:54]}  Bxg3+ {[%clk 0:00:18]} 27. Nxg3 {[%clk 0:00:55]}  Ne7 {[%clk 0:00:16]} 28. Qxg4 {[%clk 0:00:53]}  Rhg8 {[%clk 0:00:16]} 29. f5 {[%clk 0:00:48]}  exf5 {[%clk 0:00:15]} 30. Nxf5 {[%clk 0:00:48]}  Nxf5 {[%clk 0:00:15]} 31. Qxf5 {[%clk 0:00:49]}  g6 {[%clk 0:00:16]} 32. hxg6 {[%clk 0:00:47]}  Rxg6 {[%clk 0:00:15]} 33. O-O-O {[%clk 0:00:43]}  Rf8 {[%clk 0:00:15]} 34. Qh3 {[%clk 0:00:39]}  Qc6 {[%clk 0:00:15]} 35. Rdf1 {[%clk 0:00:32]}  Re8 {[%clk 0:00:11]} 36. Rf7 {[%clk 0:00:31]}  Qxa4 {[%clk 0:00:10]} 37. Kb2 {[%clk 0:00:27]}  Qc6 {[%clk 0:00:08]} 38. Rhf1 {[%clk 0:00:22]}  a5 {[%clk 0:00:06]} 39. bxa5 {[%clk 0:00:20]}  Qb5+ {[%clk 0:00:06]} 40. Kc2 {[%clk 0:00:20]}  Qa4+ {[%clk 0:00:06]} 41. Kc1 {[%clk 0:00:20]}  Qa3+ {[%clk 0:00:05]} 42. Kc2 {[%clk 0:00:20]}  Qa4+ {[%clk 0:00:06]} 43. Kc1 {[%clk 0:00:20]}  Qa3+ {[%clk 0:00:06]} 44. Kc2 {[%clk 0:00:20]}  Qa4+ {[%clk 0:00:06]} 1/2-1/2


[Site "https://www.chess.com"]

[Event "Titled Tuesday Blitz December 06 Early 2022"]
[White "Lehtosaari, Mauri"]
[Black "Kazakouski, Valery"]
[WhiteFideId "501999"]
[BlackFideId "13507443"]
[WhiteElo "2506"]
[BlackElo "2516"]
[Result "0-1"]
[Round "05"]
[TimeControl "180+1"]
[Date "2022.12.07"]
[WhiteClock "0:00:06"]
[BlackClock "0:00:04"]

1. d4 {[%clk 0:03:00]}  d5 {[%clk 0:02:59]} 2. Nf3 {[%clk 0:03:00]}  Nf6 {[%clk 0:02:59]} 3. Bg5 {[%clk 0:02:59]}  c6 {[%clk 0:02:54]} 4. e3 {[%clk 0:02:59]}  Bf5 {[%clk 0:02:54]} 5. c4 {[%clk 0:02:56]}  e6 {[%clk 0:02:50]} 6. Nc3 {[%clk 0:02:53]}  Nbd7 {[%clk 0:02:42]} 7. Qb3 {[%clk 0:02:51]}  Qb6 {[%clk 0:02:42]} 8. c5 {[%clk 0:02:51]}  Qxb3 {[%clk 0:02:42]} 9. axb3 {[%clk 0:02:52]}  a6 {[%clk 0:02:42]} 10. b4 {[%clk 0:02:52]}  Rc8 {[%clk 0:02:42]} 11. h3 {[%clk 0:02:51]}  Be7 {[%clk 0:02:40]} 12. Be2 {[%clk 0:02:50]}  Bd8 {[%clk 0:02:38]} 13. O-O {[%clk 0:02:30]}  Bc7 {[%clk 0:02:37]} 14. Bf4 {[%clk 0:02:29]}  Bxf4 {[%clk 0:02:32]} 15. exf4 {[%clk 0:02:30]}  Ne4 {[%clk 0:02:31]} 16. Rfd1 {[%clk 0:02:15]}  h6 {[%clk 0:02:28]} 17. Ne1 {[%clk 0:01:54]}  Ke7 {[%clk 0:02:26]} 18. f3 {[%clk 0:01:49]}  Ng3 {[%clk 0:02:20]} 19. Bd3 {[%clk 0:01:45]}  h5 {[%clk 0:02:18]} 20. Kf2 {[%clk 0:01:30]}  h4 {[%clk 0:02:18]} 21. Nc2 {[%clk 0:01:23]}  Bxd3 {[%clk 0:02:11]} 22. Rxd3 {[%clk 0:01:23]}  Nh5 {[%clk 0:02:09]} 23. Ne2 {[%clk 0:01:20]}  Nf8 {[%clk 0:02:00]} 24. Ne3 {[%clk 0:01:14]}  f5 {[%clk 0:01:55]} 25. Re1 {[%clk 0:00:58]}  Ng6 {[%clk 0:01:54]} 26. Rd2 {[%clk 0:00:39]}  Kf6 {[%clk 0:01:52]} 27. Nd1 {[%clk 0:00:33]}  Ngxf4 {[%clk 0:01:50]} 28. Nxf4 {[%clk 0:00:32]}  Nxf4 {[%clk 0:01:51]} 29. Nc3 {[%clk 0:00:27]}  Rce8 {[%clk 0:01:49]} 30. Ne2 {[%clk 0:00:27]}  Nh5 {[%clk 0:01:44]} 31. f4 {[%clk 0:00:25]}  Rhg8 {[%clk 0:01:42]} 32. Rd3 {[%clk 0:00:20]}  g5 {[%clk 0:01:40]} 33. fxg5+ {[%clk 0:00:20]}  Rxg5 {[%clk 0:01:37]} 34. Rf3 {[%clk 0:00:21]}  Reg8 {[%clk 0:01:28]} 35. Rg1 {[%clk 0:00:21]}  Re8 {[%clk 0:01:16]} 36. Re1 {[%clk 0:00:21]}  e5 {[%clk 0:01:14]} 37. dxe5+ {[%clk 0:00:19]}  Rxe5 {[%clk 0:01:07]} 38. Rf1 {[%clk 0:00:16]}  Rxe2+ {[%clk 0:00:47]} 39. Kxe2 {[%clk 0:00:16]}  Ng3+ {[%clk 0:00:35]} 40. Kf2 {[%clk 0:00:08]}  Nxf1 {[%clk 0:00:19]} 41. Kxf1 {[%clk 0:00:09]}  Rg8 {[%clk 0:00:15]} 42. Rf4 {[%clk 0:00:09]}  Kg5 {[%clk 0:00:13]} 43. Rf3 {[%clk 0:00:08]}  Re8 {[%clk 0:00:12]} 44. g3 {[%clk 0:00:09]}  Re4 {[%clk 0:00:10]} 45. gxh4+ {[%clk 0:00:09]}  Rxh4 {[%clk 0:00:09]} 46. Rg3+ {[%clk 0:00:08]}  Kf6 {[%clk 0:00:09]} 47. Rb3 {[%clk 0:00:08]}  d4 {[%clk 0:00:07]} 48. Kg2 {[%clk 0:00:09]}  Re4 {[%clk 0:00:06]} 49. Kf3 {[%clk 0:00:10]}  Ke5 {[%clk 0:00:06]} 50. Rd3 {[%clk 0:00:08]}  f4 {[%clk 0:00:04]} 51. h4 {[%clk 0:00:07]}  Re3+ {[%clk 0:00:04]} 52. Rxe3+ {[%clk 0:00:07]}  fxe3 {[%clk 0:00:05]} 53. h5 {[%clk 0:00:07]}  Kf6 {[%clk 0:00:05]} 54. Kg4 {[%clk 0:00:06]}  e2 {[%clk 0:00:04]} 0-1


[Site "https://www.chess.com"]

[Event "Titled Tuesday Blitz December 06 Early 2022"]
[White "Lenderman, Aleksandr"]
[Black "Predke, Alexandr"]
[WhiteFideId "2021285"]
[BlackFideId "24107581"]
[WhiteElo "2607"]
[BlackElo "2616"]
[Result "0-1"]
[Round "05"]
[TimeControl "180+1"]
[Date "2022.12.06"]
[WhiteClock "0:01:30"]
[BlackClock "0:00:56"]

1. d4 {[%clk 0:03:00]}  d5 {[%clk 0:02:59]} 2. c4 {[%clk 0:03:00]}  e6 {[%clk 0:02:59]} 3. Nf3 {[%clk 0:03:01]}  Nf6 {[%clk 0:02:59]} 4. e3 {[%clk 0:03:01]}  Be7 {[%clk 0:02:59]} 5. Nc3 {[%clk 0:02:59]}  O-O {[%clk 0:02:59]} 6. b3 {[%clk 0:03:00]}  c5 {[%clk 0:02:57]} 7. dxc5 {[%clk 0:03:00]}  Bxc5 {[%clk 0:02:57]} 8. cxd5 {[%clk 0:02:58]}  exd5 {[%clk 0:02:54]} 9. Bd3 {[%clk 0:02:58]}  Nc6 {[%clk 0:02:54]} 10. O-O {[%clk 0:02:58]}  Bg4 {[%clk 0:02:52]} 11. Be2 {[%clk 0:02:58]}  a6 {[%clk 0:02:51]} 12. Bb2 {[%clk 0:02:56]}  Ba7 {[%clk 0:02:39]} 13. h3 {[%clk 0:02:56]}  Bh5 {[%clk 0:02:38]} 14. Nh4 {[%clk 0:02:56]}  Bg6 {[%clk 0:02:36]} 15. Nxg6 {[%clk 0:02:55]}  hxg6 {[%clk 0:02:35]} 16. Bf3 {[%clk 0:02:55]}  d4 {[%clk 0:02:35]} 17. exd4 {[%clk 0:02:55]}  Bxd4 {[%clk 0:02:33]} 18. Bxc6 {[%clk 0:02:55]}  bxc6 {[%clk 0:02:34]} 19. Na4 {[%clk 0:02:53]}  c5 {[%clk 0:02:28]} 20. Rc1 {[%clk 0:02:50]}  Qd6 {[%clk 0:02:22]} 21. Qf3 {[%clk 0:02:36]}  Rad8 {[%clk 0:02:21]} 22. Rfd1 {[%clk 0:02:36]}  Qe7 {[%clk 0:01:58]} 23. Bxd4 {[%clk 0:02:23]}  cxd4 {[%clk 0:01:59]} 24. Rc4 {[%clk 0:02:23]}  Rfe8 {[%clk 0:01:52]} 25. Rcxd4 {[%clk 0:02:20]}  Rxd4 {[%clk 0:01:46]} 26. Rxd4 {[%clk 0:02:21]}  Qe1+ {[%clk 0:01:45]} 27. Kh2 {[%clk 0:02:21]}  Re2 {[%clk 0:01:38]} 28. Rd8+ {[%clk 0:02:21]}  Kh7 {[%clk 0:01:38]} 29. Qa8 {[%clk 0:02:19]}  g5 {[%clk 0:01:38]} 30. Nc5 {[%clk 0:01:45]}  Qxf2 {[%clk 0:01:29]} 31. Rh8+ {[%clk 0:01:43]}  Kg6 {[%clk 0:01:29]} 32. Nd3 {[%clk 0:01:44]}  Qe3 {[%clk 0:01:03]} 33. Qd8 {[%clk 0:01:30]}  Rd2 {[%clk 0:00:56]} 0-1


[Site "https://www.chess.com"]

[Event "Titled Tuesday Blitz December 06 Early 2022"]
[White "Levine, David"]
[Black "Shubenkova, Veronika"]
[WhiteFideId "2011611"]
[BlackFideId "44124040"]
[WhiteElo "2194"]
[BlackElo "2027"]
[Result "0-1"]
[Round "05"]
[TimeControl "180+1"]
[Date "2022.12.07"]
[WhiteClock "0:00:01"]
[BlackClock "0:01:56"]

1. d4 {[%clk 0:00:34]}  d5 {[%clk 0:02:51]} 2. c4 {[%clk 0:00:34]}  e6 {[%clk 0:02:52]} 3. g3 {[%clk 0:00:34]}  Nf6 {[%clk 0:02:52]} 4. Nf3 {[%clk 0:00:34]}  Be7 {[%clk 0:02:52]} 5. Bg2 {[%clk 0:00:34]}  O-O {[%clk 0:02:53]} 6. O-O {[%clk 0:00:35]}  c6 {[%clk 0:02:53]} 7. Qc2 {[%clk 0:00:34]}  Nbd7 {[%clk 0:02:53]} 8. Nbd2 {[%clk 0:00:34]}  Re8 {[%clk 0:02:52]} 9. e4 {[%clk 0:00:34]}  dxe4 {[%clk 0:02:51]} 10. Nxe4 {[%clk 0:00:34]}  Nxe4 {[%clk 0:02:51]} 11. Qxe4 {[%clk 0:00:35]}  Nf6 {[%clk 0:02:52]} 12. Qc2 {[%clk 0:00:35]}  b6 {[%clk 0:02:52]} 13. Rd1 {[%clk 0:00:31]}  Bb7 {[%clk 0:02:51]} 14. c5 {[%clk 0:00:30]}  Nd5 {[%clk 0:02:42]} 15. Ne5 {[%clk 0:00:30]}  Qc7 {[%clk 0:02:40]} 16. Rb1 {[%clk 0:00:24]}  bxc5 {[%clk 0:02:38]} 17. Bxd5 {[%clk 0:00:21]}  cxd5 {[%clk 0:02:36]} 18. Nd3 {[%clk 0:00:18]}  c4 {[%clk 0:02:35]} 19. Bf4 {[%clk 0:00:16]}  Qb6 {[%clk 0:02:32]} 20. Ne5 {[%clk 0:00:13]}  Bf6 {[%clk 0:02:31]} 21. Nd7 {[%clk 0:00:13]}  Qc6 {[%clk 0:02:29]} 22. Nxf6+ {[%clk 0:00:12]}  gxf6 {[%clk 0:02:26]} 23. Qe2 {[%clk 0:00:11]}  Kf8 {[%clk 0:02:23]} 24. Qh5 {[%clk 0:00:09]}  Ke7 {[%clk 0:02:23]} 25. Qxh7 {[%clk 0:00:08]}  Rh8 {[%clk 0:02:22]} 26. Qc2 {[%clk 0:00:08]}  Rag8 {[%clk 0:02:21]} 27. b3 {[%clk 0:00:07]}  Rh4 {[%clk 0:02:16]} 28. Be3 {[%clk 0:00:06]}  f5 {[%clk 0:02:14]} 29. Kf1 {[%clk 0:00:03]}  Rxh2 {[%clk 0:02:13]} 30. Qb2 {[%clk 0:00:01]}  Rxg3 {[%clk 0:02:11]} 31. Qa3+ {[%clk 0:00:01]}  Kf6 {[%clk 0:01:59]} 32. fxg3 {[%clk 0:00:01]}  c3 {[%clk 0:01:56]} 0-1


[Site "https://www.chess.com"]

[Event "Titled Tuesday Blitz December 06 Early 2022"]
[White "Liu, Xiangyi"]
[Black "Ovchinnikov, Vsevolod"]
[WhiteFideId "8605718"]
[BlackFideId "24176842"]
[WhiteElo "2323"]
[BlackElo "2376"]
[Result "0-1"]
[Round "05"]
[TimeControl "180+1"]
[Date "2022.12.07"]
[WhiteClock "0:00:01"]
[BlackClock "0:00:07"]

1. e4 {[%clk 0:03:00]}  g6 {[%clk 0:02:59]} 2. Nf3 {[%clk 0:02:59]}  Bg7 {[%clk 0:02:59]} 3. Bc4 {[%clk 0:03:00]}  d6 {[%clk 0:02:56]} 4. O-O {[%clk 0:02:59]}  Nf6 {[%clk 0:02:57]} 5. Re1 {[%clk 0:02:59]}  O-O {[%clk 0:02:57]} 6. Nc3 {[%clk 0:02:58]}  Bg4 {[%clk 0:02:57]} 7. h3 {[%clk 0:02:50]}  Bxf3 {[%clk 0:02:56]} 8. Qxf3 {[%clk 0:02:51]}  Nc6 {[%clk 0:02:57]} 9. Qd1 {[%clk 0:02:52]}  Nd7 {[%clk 0:02:51]} 10. a4 {[%clk 0:02:48]}  e6 {[%clk 0:02:48]} 11. Ne2 {[%clk 0:02:42]}  Qf6 {[%clk 0:02:38]} 12. Ra3 {[%clk 0:02:33]}  a6 {[%clk 0:02:09]} 13. Ng3 {[%clk 0:01:35]}  h5 {[%clk 0:01:44]} 14. c3 {[%clk 0:01:30]}  h4 {[%clk 0:01:39]} 15. Nf1 {[%clk 0:01:31]}  Na5 {[%clk 0:01:08]} 16. Be2 {[%clk 0:01:19]}  c5 {[%clk 0:01:08]} 17. Ne3 {[%clk 0:01:13]}  Rfd8 {[%clk 0:01:02]} 18. Rf1 {[%clk 0:01:11]}  Nc6 {[%clk 0:00:39]} 19. f4 {[%clk 0:01:09]}  Qe7 {[%clk 0:00:39]} 20. Qe1 {[%clk 0:01:02]}  Re8 {[%clk 0:00:32]} 21. Bf3 {[%clk 0:00:45]}  Rad8 {[%clk 0:00:22]} 22. d3 {[%clk 0:00:43]}  Nb6 {[%clk 0:00:16]} 23. Qf2 {[%clk 0:00:31]}  a5 {[%clk 0:00:13]} 24. Bd2 {[%clk 0:00:30]}  d5 {[%clk 0:00:12]} 25. exd5 {[%clk 0:00:25]}  Nxd5 {[%clk 0:00:08]} 26. Nxd5 {[%clk 0:00:24]}  exd5 {[%clk 0:00:09]} 27. Raa1 {[%clk 0:00:24]}  Bf6 {[%clk 0:00:07]} 28. Rfe1 {[%clk 0:00:23]}  Qd6 {[%clk 0:00:08]} 29. Rxe8+ {[%clk 0:00:22]}  Rxe8 {[%clk 0:00:09]} 30. Re1 {[%clk 0:00:23]}  Rxe1+ {[%clk 0:00:09]} 31. Qxe1 {[%clk 0:00:24]}  Ne7 {[%clk 0:00:08]} 32. Bg4 {[%clk 0:00:23]}  b6 {[%clk 0:00:08]} 33. Qe2 {[%clk 0:00:21]}  Kg7 {[%clk 0:00:09]} 34. Be1 {[%clk 0:00:20]}  Nf5 {[%clk 0:00:08]} 35. Qf3 {[%clk 0:00:20]}  Qe6 {[%clk 0:00:08]} 36. Bf2 {[%clk 0:00:20]}  Qd6 {[%clk 0:00:04]} 37. Bxf5 {[%clk 0:00:19]}  gxf5 {[%clk 0:00:04]} 38. Kf1 {[%clk 0:00:18]}  Kg6 {[%clk 0:00:03]} 39. g3 {[%clk 0:00:17]}  hxg3 {[%clk 0:00:04]} 40. Qxg3+ {[%clk 0:00:18]}  Kh7 {[%clk 0:00:03]} 41. h4 {[%clk 0:00:17]}  Qe6 {[%clk 0:00:03]} 42. Qf3 {[%clk 0:00:17]}  Kg6 {[%clk 0:00:03]} 43. Qg2+ {[%clk 0:00:16]}  Kh7 {[%clk 0:00:03]} 44. h5 {[%clk 0:00:16]}  Be7 {[%clk 0:00:02]} 45. Qh3 {[%clk 0:00:16]}  Kh6 {[%clk 0:00:02]} 46. Bh4 {[%clk 0:00:15]}  Bxh4 {[%clk 0:00:02]} 47. Qxh4 {[%clk 0:00:16]}  f6 {[%clk 0:00:01]} 48. Kf2 {[%clk 0:00:15]}  d4 {[%clk 0:00:01]} 49. Qg3 {[%clk 0:00:07]}  Kxh5 {[%clk 0:00:01]} 50. Qf3+ {[%clk 0:00:07]}  Kg6 {[%clk 0:00:02]} 51. c4 {[%clk 0:00:08]}  Kf7 {[%clk 0:00:02]} 52. Kg2 {[%clk 0:00:08]}  Kg6 {[%clk 0:00:02]} 53. Kh3 {[%clk 0:00:08]}  Kh6 {[%clk 0:00:02]} 54. Kh4 {[%clk 0:00:09]}  Kg7 {[%clk 0:00:03]} 55. Qg3+ {[%clk 0:00:08]}  Kh7 {[%clk 0:00:04]} 56. Qh2 {[%clk 0:00:07]}  Kg6 {[%clk 0:00:04]} 57. Qg3+ {[%clk 0:00:07]}  Kh7 {[%clk 0:00:04]} 58. Qf3 {[%clk 0:00:07]}  Kg6 {[%clk 0:00:04]} 59. Kg3 {[%clk 0:00:07]}  Kg7 {[%clk 0:00:04]} 60. Kf2 {[%clk 0:00:08]}  Kf8 {[%clk 0:00:05]} 61. Qb7 {[%clk 0:00:08]}  Kg8 {[%clk 0:00:05]} 62. Kf1 {[%clk 0:00:07]}  Kf8 {[%clk 0:00:05]} 63. Qc7 {[%clk 0:00:07]}  Ke8 {[%clk 0:00:06]} 64. b3 {[%clk 0:00:08]}  Kf8 {[%clk 0:00:06]} 65. Qh7 {[%clk 0:00:08]}  Ke8 {[%clk 0:00:06]} 66. Qh8+ {[%clk 0:00:08]}  Ke7 {[%clk 0:00:06]} 67. Qh3 {[%clk 0:00:09]}  Kf8 {[%clk 0:00:07]} 68. Qf3 {[%clk 0:00:10]}  Kg7 {[%clk 0:00:07]} 69. Kg2 {[%clk 0:00:10]}  Kh7 {[%clk 0:00:07]} 70. Kh3 {[%clk 0:00:11]}  Kh6 {[%clk 0:00:07]} 71. Qg3 {[%clk 0:00:11]}  Kh7 {[%clk 0:00:07]} 72. Qh4+ {[%clk 0:00:11]}  Kg6 {[%clk 0:00:08]} 73. Qg3+ {[%clk 0:00:12]}  Kf7 {[%clk 0:00:08]} 74. Qf3 {[%clk 0:00:13]}  Kg6 {[%clk 0:00:08]} 75. Kh4 {[%clk 0:00:12]}  Kh6 {[%clk 0:00:08]} 76. Kg3 {[%clk 0:00:12]}  Kg7 {[%clk 0:00:08]} 77. Kg2 {[%clk 0:00:13]}  Kg6 {[%clk 0:00:09]} 78. Qd5 {[%clk 0:00:13]}  Qe2+ {[%clk 0:00:08]} 79. Kg1 {[%clk 0:00:13]}  Qe3+ {[%clk 0:00:08]} 80. Kg2 {[%clk 0:00:12]}  Qd2+ {[%clk 0:00:08]} 81. Kg1 {[%clk 0:00:11]}  Qe1+ {[%clk 0:00:08]} 82. Kg2 {[%clk 0:00:12]}  Qe2+ {[%clk 0:00:08]} 83. Kg1 {[%clk 0:00:12]}  Qe3+ {[%clk 0:00:08]} 84. Kg2 {[%clk 0:00:12]}  Qxf4 {[%clk 0:00:09]} 85. Qg8+ {[%clk 0:00:12]}  Kh5 {[%clk 0:00:09]} 86. Qh7+ {[%clk 0:00:10]}  Qh6 {[%clk 0:00:09]} 87. Qc7 {[%clk 0:00:08]}  Qg5+ {[%clk 0:00:09]} 88. Kh2 {[%clk 0:00:03]}  Kg4 {[%clk 0:00:08]} 89. Qg3+ {[%clk 0:00:02]}  Kh5 {[%clk 0:00:09]} 90. Qd6 {[%clk 0:00:03]}  Kh4 {[%clk 0:00:08]} 91. Qc7 {[%clk 0:00:02]}  Qd2+ {[%clk 0:00:08]} 92. Kg1 {[%clk 0:00:03]}  Qe1+ {[%clk 0:00:08]} 93. Kg2 {[%clk 0:00:03]}  Qe2+ {[%clk 0:00:08]} 94. Kg1 {[%clk 0:00:03]}  Qe3+ {[%clk 0:00:08]} 95. Kg2 {[%clk 0:00:04]}  Qd2+ {[%clk 0:00:09]} 96. Kg1 {[%clk 0:00:04]}  Qg5+ {[%clk 0:00:09]} 97. Kh2 {[%clk 0:00:04]}  Kh5 {[%clk 0:00:07]} 98. Kh1 {[%clk 0:00:03]}  f4 {[%clk 0:00:07]} 99. Qh7+ {[%clk 0:00:03]}  Kg4 {[%clk 0:00:07]} 100. Kg2 {[%clk 0:00:01]}  f3+ {[%clk 0:00:07]} 0-1


[Site "https://www.chess.com"]

[Event "Titled Tuesday Blitz December 06 Early 2022"]
[White "Makhmudov, Shukhrat"]
[Black "Goltsev, Dmitry"]
[WhiteFideId "14200775"]
[BlackFideId "24176710"]
[WhiteElo "2135"]
[BlackElo "2327"]
[Result "0-1"]
[Round "05"]
[TimeControl "180+1"]
[Date "2022.12.07"]
[WhiteClock "0:01:44"]
[BlackClock "0:02:56"]

1. e4 {[%clk 0:03:00]}  e6 {[%clk 0:02:59]} 2. d4 {[%clk 0:02:59]}  d5 {[%clk 0:03:00]} 3. exd5 {[%clk 0:03:00]}  exd5 {[%clk 0:03:01]} 4. Nf3 {[%clk 0:03:00]}  Nf6 {[%clk 0:03:02]} 5. Bd3 {[%clk 0:03:00]}  Bd6 {[%clk 0:03:02]} 6. O-O {[%clk 0:03:00]}  O-O {[%clk 0:03:03]} 7. h3 {[%clk 0:03:00]}  c5 {[%clk 0:03:02]} 8. dxc5 {[%clk 0:03:00]}  Bxc5 {[%clk 0:03:03]} 9. Bg5 {[%clk 0:02:59]}  h6 {[%clk 0:03:03]} 10. Bh4 {[%clk 0:02:59]}  Qd6 {[%clk 0:03:04]} 11. Nc3 {[%clk 0:02:54]}  g5 {[%clk 0:03:03]} 12. Bg3 {[%clk 0:02:52]}  Qxg3 {[%clk 0:03:03]} 13. Na4 {[%clk 0:02:25]}  Bxh3 {[%clk 0:03:00]} 14. Ne1 {[%clk 0:02:20]}  Ng4 {[%clk 0:02:59]} 15. Qxg4 {[%clk 0:02:00]}  Bxg4 {[%clk 0:03:00]} 16. Nxc5 {[%clk 0:01:59]}  Qd6 {[%clk 0:03:00]} 17. Nb3 {[%clk 0:01:58]}  Nc6 {[%clk 0:03:00]} 18. c3 {[%clk 0:01:58]}  Rfe8 {[%clk 0:03:00]} 19. f3 {[%clk 0:01:56]}  Be6 {[%clk 0:03:00]} 20. Nc2 {[%clk 0:01:56]}  Ne5 {[%clk 0:03:00]} 21. Be2 {[%clk 0:01:55]}  Bf5 {[%clk 0:03:01]} 22. Ncd4 {[%clk 0:01:55]}  Bd3 {[%clk 0:03:01]} 23. Rae1 {[%clk 0:01:53]}  Bxe2 {[%clk 0:02:59]} 24. Rxe2 {[%clk 0:01:54]}  Nc4 {[%clk 0:03:00]} 25. Rfe1 {[%clk 0:01:53]}  Rxe2 {[%clk 0:02:57]} 26. Rxe2 {[%clk 0:01:54]}  Kf8 {[%clk 0:02:58]} 27. Nf5 {[%clk 0:01:54]}  Qb6+ {[%clk 0:02:57]} 28. Nbd4 {[%clk 0:01:54]}  Re8 {[%clk 0:02:57]} 29. Rxe8+ {[%clk 0:01:50]}  Kxe8 {[%clk 0:02:58]} 30. b3 {[%clk 0:01:51]}  Nd6 {[%clk 0:02:56]} 31. Kh2 {[%clk 0:01:48]}  Nxf5 {[%clk 0:02:56]} 32. Nxf5 {[%clk 0:01:49]}  Qc7+ {[%clk 0:02:57]} 33. Kh3 {[%clk 0:01:48]}  Qxc3 {[%clk 0:02:57]} 34. b4 {[%clk 0:01:47]}  Qxb4 {[%clk 0:02:56]} 35. a4 {[%clk 0:01:46]}  Qxa4 {[%clk 0:02:56]} 36. g4 {[%clk 0:01:46]}  Qf4 {[%clk 0:02:56]} 37. Kg2 {[%clk 0:01:44]}  a5 {[%clk 0:02:56]} 0-1


[Site "https://www.chess.com"]

[Event "Titled Tuesday Blitz December 06 Early 2022"]
[White "Manukyan, Sargis A."]
[Black "Movahed, Sina"]
[WhiteFideId "13303970"]
[BlackFideId "42520835"]
[WhiteElo "2187"]
[BlackElo "2225"]
[Result "0-1"]
[Round "05"]
[TimeControl "180+1"]
[Date "2022.12.07"]
[WhiteClock "0:00:06"]
[BlackClock "0:01:39"]

1. d4 {[%clk 0:02:50]}  Nf6 {[%clk 0:02:59]} 2. c4 {[%clk 0:02:50]}  g6 {[%clk 0:02:59]} 3. Nc3 {[%clk 0:02:50]}  Bg7 {[%clk 0:02:59]} 4. e4 {[%clk 0:02:50]}  d6 {[%clk 0:03:00]} 5. Be2 {[%clk 0:02:51]}  O-O {[%clk 0:03:00]} 6. Nf3 {[%clk 0:02:50]}  e5 {[%clk 0:02:59]} 7. O-O {[%clk 0:02:50]}  exd4 {[%clk 0:02:59]} 8. Nxd4 {[%clk 0:02:50]}  Re8 {[%clk 0:03:00]} 9. Be3 {[%clk 0:02:50]}  Nxe4 {[%clk 0:02:59]} 10. Nxe4 {[%clk 0:02:17]}  Rxe4 {[%clk 0:03:00]} 11. Bf3 {[%clk 0:02:17]}  Re8 {[%clk 0:02:56]} 12. Qd2 {[%clk 0:02:00]}  Nd7 {[%clk 0:02:47]} 13. Rfe1 {[%clk 0:01:53]}  Ne5 {[%clk 0:02:44]} 14. Be2 {[%clk 0:01:53]}  c6 {[%clk 0:02:43]} 15. Rad1 {[%clk 0:01:52]}  a5 {[%clk 0:02:36]} 16. h3 {[%clk 0:01:51]}  a4 {[%clk 0:02:36]} 17. Nc2 {[%clk 0:01:39]}  Be6 {[%clk 0:02:34]} 18. Na3 {[%clk 0:01:08]}  d5 {[%clk 0:02:29]} 19. c5 {[%clk 0:00:48]}  Nc4 {[%clk 0:02:03]} 20. Nxc4 {[%clk 0:00:46]}  dxc4 {[%clk 0:02:04]} 21. Qb4 {[%clk 0:00:47]}  Qa5 {[%clk 0:02:00]} 22. Qxb7 {[%clk 0:00:43]}  Bd5 {[%clk 0:01:50]} 23. Qb6 {[%clk 0:00:26]}  Reb8 {[%clk 0:01:43]} 24. Qxa5 {[%clk 0:00:22]}  Rxa5 {[%clk 0:01:44]} 25. Bd2 {[%clk 0:00:23]}  Rxc5 {[%clk 0:01:41]} 26. Bc3 {[%clk 0:00:23]}  Bxc3 {[%clk 0:01:40]} 27. bxc3 {[%clk 0:00:24]}  Rb2 {[%clk 0:01:39]} 28. Ra1 {[%clk 0:00:08]}  a3 {[%clk 0:01:38]} 29. Bf3 {[%clk 0:00:06]}  Bxf3 {[%clk 0:01:38]} 30. gxf3 {[%clk 0:00:07]}  Rg5+ {[%clk 0:01:37]} 31. Kf1 {[%clk 0:00:06]}  Rd5 {[%clk 0:01:38]} 32. Re3 {[%clk 0:00:06]}  Rdd2 {[%clk 0:01:38]} 33. Re4 {[%clk 0:00:06]}  Rxf2+ {[%clk 0:01:39]} 0-1


[Site "https://www.chess.com"]